bitfinex-derivatives/quotes_SOLF0:USTF0_20260127
["timestamp","ask_amount","ask_price","bid_price","bid_amount"]
[1769482533953,13.03669432,125.0,124.95,3.21795838]
[1769482536568,10.68866967,125.0,124.95,3.21795838]
[1769482542667,2.34802465,125.0,124.93,325.00598303]
[1769482542873,3.48036967,124.98,124.93,322.65795838]
[1769482543473,3.48036967,124.98,124.94,3.21795838]
[1769482543873,7.2094,124.98,124.94,3.21795838]
[1769482544272,5.82839432,125.0,124.94,3.21795838]
[1769482545065,7.2089,124.99,124.94,3.21795838]
[1769482545269,5.82839432,125.0,124.94,3.21795838]
[1769482546874,13.03659432,125.0,124.94,3.21795838]
[1769482548271,7.2075,125.02,124.97,5.56598303]
[1769482549077,10.68816967,125.01,124.95,3.21795838]
[1769482549269,13.03619432,125.01,124.95,3.21795838]
[1769482551476,10.68816967,125.01,124.95,3.21795838]
[1769482555380,13.03619432,125.01,124.95,3.21795838]
[1769482557778,10.68816967,125.01,124.95,3.21795838]
[1769482560478,10.68816967,125.01,124.95,5.56598303]
[1769482560781,10.68816967,125.01,124.96,3.28721649]
[1769482569980,10.68816967,125.01,124.97,3.28721649]
[1769482570781,10.68816967,125.01,124.96,2.34802465]
[1769482573089,10.68816967,125.01,124.96,5.63524114]
[1769482573590,10.68816967,125.01,124.96,5.63539665]
[1769482574587,10.61364403,125.03,124.98,2.34818016]
[1769482574782,3.40664403,125.02,124.97,3.28721649]
[1769482575588,10.61434403,125.01,124.97,3.28721649]
[1769482576990,10.61354403,125.03,124.98,2.34818016]
[1769482577185,3.40664403,125.03,124.99,2.34818016]
[1769482580086,3.40664403,125.03,124.98,3.28721649]
[1769482580387,3.40664403,125.03,124.98,5.63539665]
[1769482584495,3.40664403,125.03,124.98,3.28721649]
[1769482589990,10.61314403,125.03,124.98,3.28721649]
[1769482593298,3.40664403,125.03,124.99,3.36779109]
[1769482597408,3.22489019,125.04,124.99,3.36779109]
[1769482599310,315.51943891,125.05,124.99,5.71597125]
[1769482601113,317.86761907,125.05,124.99,3.36779109]
[1769482605219,310.66221907,125.05,125.0,23.26716983]
[1769482605619,3.22489019,125.04,125.0,23.26716983]
[1769482607815,305.08914872,125.05,125.0,33.84306092]
[1769482608020,308.31403891,125.05,125.0,33.84306092]
[1769482608918,3.22489019,125.05,125.0,33.84306092]
[1769482609122,5.57307035,125.05,125.0,33.84306092]
[1769482627235,3.22489019,125.05,125.0,33.84306092]
[1769482630537,3.52406896,125.09,125.02,2.34818016]
[1769482630843,5.87224912,125.09,125.04,3.43039229]
[1769482631337,2.34818016,125.08,125.04,3.43039229]
[1769482631536,3.52406896,125.09,125.04,3.43039229]
[1769482637140,5.86969344,125.07,125.01,3.43039229]
[1769482639050,13.07399344,125.07,125.01,3.43039229]
[1769482640246,2.34562448,125.06,125.01,3.43039229]
[1769482641644,9.55052448,125.06,125.01,3.43039229]
[1769482642244,13.03028381,125.06,125.01,3.43039229]
[1769482642449,13.03098381,125.05,125.0,26.69093274]
[1769482642649,10.68535933,125.05,125.0,26.69093274]
[1769482642844,10.68535933,125.05,125.01,3.42376291]
[1769482643046,10.68535933,125.05,125.0,26.69093274]
[1769482643351,13.03098381,125.05,125.0,26.69093274]
[1769482644752,10.68535933,125.05,125.0,26.69093274]
[1769482645050,13.03098381,125.05,125.0,26.69093274]
[1769482646150,10.68535933,125.05,125.0,26.69093274]
[1769482646351,10.68535933,125.05,125.0,29.03655722]
[1769482648653,10.68535933,125.05,125.0,26.69093274]
[1769482649048,10.68535933,125.05,125.01,3.42376291]
[1769482650452,3.47975933,125.04,125.0,23.26716983]
[1769482650653,3.47975933,125.04,125.0,26.69093274]
[1769482651050,7.2056,125.05,125.0,26.69093274]
[1769482651658,7.2056,125.05,125.01,3.42376291]
[1769482652044,9.55032448,125.07,125.01,3.42376291]
[1769482652248,117.88908381,125.08,125.01,3.42376291]
[1769482652458,3.47975933,125.07,125.01,3.42376291]
[1769482653050,7.2048,125.06,125.02,3.42376291]
[1769482653256,3.47975933,125.09,125.03,5.76938739]
[1769482653450,3.47975933,125.09,125.03,3.42376291]
[1769482654057,7.2039,125.08,125.03,3.42376291]
[1769482654259,10.68365933,125.08,125.03,3.42376291]
[1769482655062,7.2039,125.08,125.03,3.42376291]
[1769482655360,10.68255933,125.1,125.04,3.42376291]
[1769482656149,10.68255933,125.1,125.04,5.76938739]
[1769482656351,10.68255933,125.1,125.05,3.42376291]
[1769482658159,13.02818381,125.1,125.05,3.42376291]
[1769482659163,10.68255933,125.1,125.05,3.42376291]
[1769482660259,10.68155933,125.12,125.07,3.42376291]
[1769482660667,13.02718381,125.12,125.07,3.42376291]
[1769482660869,3.47975933,125.11,125.07,3.42376291]
[1769482661371,5.82538381,125.11,125.05,3.42376291]
[1769482663066,5.82538381,125.1,125.05,3.42376291]
[1769482665170,10.68155933,125.12,125.05,3.42376291]
[1769482665371,3.47975933,125.11,125.05,5.76938739]
[1769482665766,5.82538381,125.11,125.05,3.42376291]
[1769482667567,3.47975933,125.1,125.05,3.42376291]
[1769482667973,5.82538381,125.09,125.03,3.42376291]
[1769482668875,5.82538381,125.08,125.03,3.42376291]
[1769482670873,3.47975933,125.06,125.01,3.42376291]
[1769482671070,5.82538381,125.06,125.01,3.42376291]
[1769482671972,2.34562448,125.05,125.01,3.42376291]
[1769482672174,5.82538381,125.05,125.0,30.47496983]
[1769482672373,5.82538381,125.05,125.0,23.26716983]
[1769482672777,5.82538381,125.05,125.0,26.48134501]
[1769482673580,3.5400486,125.07,125.0,26.48134501]
[1769482673789,5.88567308,125.06,125.0,26.48134501]
[1769482678775,5.88567308,125.05,125.0,26.48134501]
[1769482679383,2.34562448,125.02,125.0,3.51791147]
[1769482679586,2.34562448,125.01,124.96,3.21417518]
[1769482680583,2.34562448,125.02,124.96,3.21417518]
[1769482680989,2.34562448,125.01,124.96,3.21417518]
[1769482681290,2.34562448,125.02,124.96,3.21417518]
[1769482683889,2.34562448,124.99,124.92,9.49994749]
[1769482684089,2.34562448,124.99,124.92,11.84557197]
[1769482684290,2.34562448,125.0,124.93,11.84557197]
[1769482684890,9.55482448,125.0,124.93,11.84557197]
[1769482686693,2.34562448,124.99,124.93,9.49994749]
[1769482686890,9.55482448,125.0,124.93,9.49994749]
[1769482687193,9.55482448,125.0,124.9,23.74993858]
[1769482687194,2.34562448,124.97,124.91,9.49994749]
[1769482687894,2.34562448,124.99,124.93,9.49994749]
[1769482688394,2.34562448,125.0,124.93,11.84557197]
[1769482688596,2.34562448,124.99,124.93,9.49994749]
[1769482689695,2.34562448,125.0,124.93,9.49994749]
[1769482689997,9.55502448,125.0,124.93,9.49994749]
[1769482690295,9.55502448,125.0,124.93,11.84557197]
[1769482690897,9.55502448,125.0,124.93,9.49994749]
[1769482691193,9.55502448,125.0,124.93,11.84557197]
[1769482692093,9.55502448,125.0,124.93,9.49994749]
[1769482692294,2.34562448,124.99,124.93,9.49994749]
[1769482692698,9.55532448,124.99,124.93,9.49994749]
[1769482693400,7.2097,124.99,124.93,9.49994749]
[1769482694196,9.55602448,124.98,124.93,9.49994749]
[1769482695199,7.2104,124.98,124.93,9.49994749]
[1769482698607,9.56042313,124.98,124.93,9.49994749]
[1769482699008,7.2107,124.97,124.93,9.49994749]
[1769482708310,7.2107,124.97,124.93,11.84997062]
[1769482709115,7.2107,124.97,124.94,11.84997062]
[1769482709310,112.1341,125.01,124.94,11.84997062]
[1769482709615,114.48412313,125.01,124.94,11.84997062]
[1769482710912,7.2096,124.99,124.94,11.84997062]
[1769482714218,7.2096,124.99,124.94,9.49994749]
[1769482719321,7.2089,125.01,124.94,11.84997062]
[1769482719525,2.35002313,125.03,124.96,9.49994749]
[1769482721022,7.2079,125.02,124.96,9.49994749]
[1769482722528,7.2079,125.02,124.96,11.84997062]
[1769482723422,9.55792313,125.02,124.96,9.49994749]
[1769482724323,7.2079,125.02,124.96,11.84997062]
[1769482724529,2.35002313,125.06,125.0,9.49994749]
[1769482725122,2.35002313,125.06,125.0,32.76711732]
[1769482726029,7.2065,125.05,125.0,32.76711732]
[1769482727429,7.2065,125.05,125.01,9.49994749]
[1769482727930,9.55542313,125.07,125.01,9.49994749]
[1769482728120,2.35002313,125.07,125.01,9.49994749]
[1769482728928,7.2056,125.06,125.01,9.49994749]
[1769482729530,9.55482313,125.08,125.03,9.49994749]
[1769482731030,9.55482313,125.08,125.0,25.61719296]
[1769482731233,9.55482313,125.08,125.01,11.84997062]
[1769482733231,7.2035,125.1,125.03,9.49994749]
[1769482733427,9.55352313,125.1,125.03,11.84997062]
[1769482735637,2.35002313,125.09,125.03,9.49994749]
[1769482736926,2.35002313,125.09,125.03,11.84997062]
[1769482737630,2.35002313,125.09,125.03,9.49994749]
[1769482739437,7.2035,125.1,125.03,9.49994749]
[1769482739638,9.55352313,125.1,125.03,11.84997062]
[1769482739840,9.55352313,125.1,125.04,9.49994749]
[1769482741837,2.35002313,125.09,125.04,9.49994749]
[1769482742439,9.55352313,125.1,125.04,9.49994749]
[1769482742737,2.35002313,125.1,125.04,9.49994749]
[1769482743340,2.35002313,125.11,125.04,11.84997062]
[1769482743540,2.35002313,125.11,125.05,9.49994749]
[1769482744543,7.2025,125.12,125.05,9.49994749]
[1769482744848,9.55252313,125.12,125.05,11.84997062]
[1769482745545,9.55252313,125.12,125.05,9.49994749]
[1769482745941,7.2025,125.12,125.05,9.49994749]
[1769482746147,2.35002313,125.11,125.05,9.49994749]
[1769482746349,2.35002313,125.1,125.05,9.49994749]
[1769482747654,2.35002313,125.11,125.05,9.49994749]
[1769482748650,2.35002313,125.1,125.05,9.49994749]
[1769482750150,2.35002313,125.11,125.05,9.49994749]
[1769482752353,7.2025,125.12,125.05,9.49994749]
[1769482752558,9.55252313,125.12,125.06,9.49994749]
[1769482753165,2.35002313,125.11,125.06,9.49994749]
[1769482757666,2.34524004,125.11,125.06,9.49994749]
[1769482761568,2.34524004,125.1,125.06,9.49994749]
[1769482762764,2.34524004,125.1,125.01,112.128]
[1769482762765,2.34524004,125.09,125.02,9.55254004]
[1769482763170,2.34524004,125.09,125.02,7.2073]
[1769482763369,2.34524004,125.09,125.02,9.55254004]
[1769482764770,2.34524004,125.09,125.03,6.63341577]
[1769482764974,9.54914004,125.09,125.03,6.63341577]
[1769482766775,2.34524004,125.08,125.03,6.63341577]
[1769482769173,9.54914004,125.09,125.03,6.63341577]
[1769482769878,7.2044,125.08,125.03,6.63341577]
[1769482773178,9.54964004,125.08,125.03,6.63341577]
[1769482773685,2.8128203,125.07,125.0,25.61240987]
[1769482774884,7.2055,125.06,125.0,25.61240987]
[1769482775683,7.2055,125.06,125.01,3.48586395]
[1769482778283,10.0183203,125.06,125.01,3.48586395]
[1769482778479,0.46758026,125.05,125.0,23.26716983]
[1769482778678,0.46758026,125.05,125.0,26.75303378]
[1769482778882,7.67368026,125.05,125.01,3.48586395]
[1769482779080,7.2061,125.05,125.01,3.48586395]
[1769482779284,2.8128203,125.07,125.01,3.48586395]
[1769482779477,7.2055,125.06,125.01,3.48586395]
[1769482782284,7.2055,125.06,125.02,3.48586395]
[1769482785587,112.0556,125.1,125.02,3.48586395]
[1769482785792,112.51128026,125.11,125.04,5.83110399]
[1769482785993,0.46758026,125.1,125.05,5.83110399]
[1769482786294,0.46758026,125.1,125.05,3.48586395]
[1769482787894,7.2038,125.09,125.05,3.48586395]
[1769482796296,2.34524004,125.1,125.0,38.23264384]
[1769482796495,0.46902139,125.05,125.0,26.5838856]
[1769482796700,2.34524004,125.04,125.0,26.5838856]
[1769482797900,9.55204004,125.04,125.0,26.5838856]
[1769482798298,7.2068,125.04,125.0,26.5838856]
[1769482800400,2.34524004,125.01,125.0,6.78e-05]
[1769482800602,2.34524004,125.01,124.96,3.31671577]
[1769482801300,2.34524004,125.0,124.96,3.31671577]
[1769482801507,5.69984882,124.98,124.9,14.96547401]
[1769482801812,2.34524004,124.97,124.9,17.31071405]
[1769482802000,5.69984882,124.98,124.91,2.34524004]
[1769482802304,5.69984882,124.98,124.92,2.34524004]
[1769482802505,5.69984882,124.98,124.9,2.34524004]
[1769482802506,5.69984882,124.97,124.9,2.34524004]
[1769482802701,2.34524004,124.96,124.89,2.34524004]
[1769482803403,2.34524004,124.96,124.9,3.29733648]
[1769482803901,9.55664004,124.96,124.9,3.29733648]
[1769482804500,7.2114,124.96,124.9,5.64257652]
[1769482804703,3.35460878,124.97,124.91,5.64257652]
[1769482809409,3.35460878,124.97,124.92,5.64257652]
[1769482810214,7.2105,124.98,124.92,5.64257652]
[1769482811011,10.56510878,124.98,124.92,5.64257652]
[1769482811609,10.56510878,124.98,124.92,3.29733648]
[1769482811805,10.56510878,124.98,124.92,5.64257652]
[1769482814610,10.56400878,125.0,124.94,5.64257652]
[1769482815113,10.56430878,124.99,124.94,2.34524004]
[1769482815317,10.56430878,124.99,124.93,5.64257652]
[1769482815613,3.35460878,124.97,124.91,5.64257652]
[1769482816115,3.35460878,124.96,124.91,3.29733648]
[1769482816713,3.35460878,124.98,124.92,5.64257652]
[1769482817014,10.56490878,124.98,124.92,5.64257652]
[1769482817613,3.35460878,124.97,124.92,5.6473208]
[1769482819614,10.56540878,124.97,124.91,5.6473208]
[1769482822016,12.9153931,124.97,124.91,3.29733648]
[1769482822219,12.9153931,124.97,124.89,3.38034663]
[1769482822220,3.48750281,124.94,124.89,3.38034663]
[1769482822521,3.48750281,124.96,124.9,2.34998432]
[1769482823922,7.2122,124.95,124.91,2.34998432]
[1769482824611,7.2122,124.95,124.9,5.73033095]
[1769482827415,7.2122,124.95,124.91,2.34998432]
[1769482829627,7.2122,124.95,124.9,3.38034663]
[1769482830522,3.48750281,124.96,124.9,3.38034663]
[1769482830821,7.2111,124.97,124.92,3.38034663]
[1769482831123,7.2111,124.97,124.92,5.73033095]
[1769482832028,10.69860281,124.97,124.92,5.73033095]
[1769482832226,10.69860281,124.97,124.92,3.38034663]
[1769482832526,3.48750281,124.95,124.89,2.34998432]
[1769482832735,3.48750281,124.95,124.88,5.73033095]
[1769482832927,3.48750281,124.95,124.89,3.38034663]
[1769482833232,10.69940281,124.95,124.89,3.38034663]
[1769482835723,3.48750281,125.01,124.95,3.38034663]
[1769482835930,3.48750281,125.03,124.97,5.73033095]
[1769482837030,5.83748713,125.03,124.97,3.38034663]
[1769482837232,3.48750281,125.02,124.97,3.38034663]
[1769482837733,3.48750281,125.02,124.96,2.34998432]
[1769482837928,7.2085,125.01,124.96,2.34998432]
[1769482839342,3.48750281,125.02,124.96,2.34998432]
[1769482839832,10.69540281,125.02,124.96,2.34998432]
[1769482840632,7.2085,125.01,124.96,2.34998432]
[1769482842736,7.2085,125.01,124.95,5.73033095]
[1769482843237,3.48750281,125.02,124.97,3.38034663]
[1769482843436,3.48750281,125.02,124.97,5.73033095]
[1769482843737,3.48750281,125.02,124.97,3.38034663]
[1769482845233,10.69540281,125.02,124.97,3.38034663]
[1769482845732,13.04538713,125.02,124.97,3.38034663]
[1769482846736,10.69540281,125.02,124.97,3.38034663]
[1769482855042,3.48750281,125.02,124.97,3.38034663]
[1769482856039,10.41492041,125.04,124.98,5.67406944]
[1769482857242,10.41492041,125.04,124.99,3.32408512]
[1769482861046,12.76490473,125.04,124.99,3.32408512]
[1769482862047,5.55780473,125.04,124.99,3.32408512]
[1769482862548,2.34998432,125.05,124.99,3.32408512]
[1769482862744,5.55780473,125.06,125.0,3.32408512]
[1769482863941,3.20782041,125.06,125.01,3.32408512]
[1769482864746,2.34998432,125.07,125.02,3.32408512]
[1769482865452,5.55780473,125.07,125.02,3.32408512]
[1769482866349,3.20782041,125.07,125.02,3.32408512]
[1769482866550,5.55780473,125.09,125.03,3.32408512]
[1769482867139,5.55780473,125.09,125.03,10.53108512]
[1769482868748,5.55780473,125.09,125.03,3.32408512]
[1769482869052,3.20782041,125.08,125.03,3.32408512]
[1769482869753,5.55780473,125.08,125.03,3.32408512]
[1769482870149,5.55780473,125.08,125.01,3.32408512]
[1769482870350,5.55780473,125.07,125.01,3.32408512]
[1769482870545,3.20782041,125.07,125.01,3.32408512]
[1769482870943,3.20782041,125.07,125.02,7.2077]
[1769482871148,3.20782041,125.07,125.02,10.53178512]
[1769482873451,3.20782041,125.07,125.02,3.32408512]
[1769482877362,5.55780473,125.07,125.02,3.32408512]
[1769482877854,2.34998432,125.06,125.02,3.32408512]
[1769482879460,5.55780473,125.07,125.02,3.32408512]
[1769482879654,5.5546796,125.07,125.02,3.32408512]
[1769482881263,2.34685919,125.04,125.0,3.28452987]
[1769482881658,5.80553198,125.05,125.0,3.28452987]
[1769482885367,13.01183198,125.05,125.0,3.28452987]
[1769482885968,3.25081136,125.04,124.98,5.75686341]
[1769482886467,5.59767055,125.04,124.98,3.41000422]
[1769482886868,5.59767055,125.04,124.98,10.62010422]
[1769482887972,5.59767055,125.04,124.99,3.41000422]
[1769482891672,3.25081136,125.04,124.99,3.41000422]
[1769482898970,3.25081136,125.04,124.98,12.96696341]
[1769482899276,3.25081136,125.01,124.96,3.41000422]
[1769482901067,5.59767055,125.03,124.96,5.75686341]
[1769482901271,3.25081136,125.02,124.96,5.75686341]
[1769482901475,5.59767055,125.02,124.96,3.41000422]
[1769482903679,5.59767055,125.02,124.96,5.75686341]
[1769482904281,3.25081136,125.02,124.96,5.75686341]
[1769482904474,5.59767055,125.02,124.96,5.75686341]
[1769482904675,3.25081136,125.02,124.96,5.75686341]
[1769482905781,3.25081136,125.02,124.96,12.96806341]
[1769482905973,9.55415919,125.03,124.97,3.41000422]
[1769482906180,3.25081136,125.04,124.99,3.41000422]
[1769482908180,112.0816,125.07,124.95,112.1819]
[1769482908181,3.25081136,125.06,125.0,5.75686341]
[1769482910488,5.59767055,125.06,125.0,5.75686341]
[1769482911084,3.25081136,125.05,124.98,3.41000422]
[1769482911284,5.59767055,125.04,124.98,3.41000422]
[1769482912791,3.39977436,125.03,124.98,3.41000422]
[1769482913795,5.74663355,125.02,124.96,3.37633754]
[1769482914587,3.39977436,125.02,124.96,3.37633754]
[1769482916091,3.39977436,125.02,124.96,5.72319673]
[1769482916495,3.39977436,125.02,124.97,3.37633754]
[1769482919795,3.39977436,125.01,124.95,325.06319673]
[1769482920095,3.39977436,125.01,124.95,322.71633754]
[1769482921399,3.39977436,125.01,124.96,3.37633754]
[1769482924800,3.39977436,125.01,124.96,5.72319673]
[1769482928102,3.39977436,125.01,124.96,3.37633754]
[1769482928704,3.39977436,125.0,124.94,5.72319673]
[1769482928996,3.39977436,124.98,124.92,5.72319673]
[1769482929203,12.95693355,124.98,124.92,3.37633754]
[1769482929502,3.39977436,124.97,124.92,3.37633754]
[1769482932301,3.39977436,124.97,124.92,5.72319673]
[1769482937310,3.39977436,124.97,124.93,2.34685919]
[1769482941617,3.39977436,124.97,124.93,2.34979517]
[1769482942311,10.69955606,125.0,124.94,2.34979517]
[1769482942510,10.69955606,125.0,124.95,2.34979517]
[1769482942718,3.49005606,124.99,124.95,2.34979517]
[1769482942919,10.69965606,124.99,124.95,2.34979517]
[1769482943118,3.49005606,124.98,124.95,2.34979517]
[1769482943315,3.49005606,124.98,124.94,2.34979517]
[1769482943515,3.49005606,124.98,124.93,5.75512322]
[1769482943919,10.70015606,124.98,124.93,5.75512322]
[1769482944114,3.49005606,125.01,124.95,2.34979517]
[1769482945612,3.49005606,125.0,124.95,2.34979517]
[1769482945818,3.49005606,125.0,124.94,5.75512322]
[1769482946021,3.49005606,124.99,124.94,5.75512322]
[1769482947025,3.49005606,124.99,124.94,2.34979517]
[1769482947625,3.49005606,124.99,124.93,5.75512322]
[1769482951119,3.49005606,124.99,124.93,3.40532805]
[1769482951325,3.49005606,124.99,124.94,5.75512322]
[1769482951630,3.49005606,124.99,124.96,2.34979517]
[1769482952823,3.49005606,124.99,124.95,2.34979517]
[1769482954230,3.49005606,124.99,124.94,5.75512322]
[1769482954624,7.2094,125.0,124.95,3.40532805]
[1769482955323,10.69945606,125.0,124.95,3.40532805]
[1769482955824,10.69945606,125.0,124.95,5.75512322]
[1769482958926,3.49005606,125.06,124.99,3.40532805]
[1769482959129,3.49005606,125.05,125.0,3.40532805]
[1769482959434,10.69625606,125.05,125.0,3.40532805]
[1769482963141,3.49005606,125.05,125.0,5.75512322]
[1769482963733,3.49005606,125.05,125.0,3.40532805]
[1769482964335,3.49005606,125.07,125.02,5.75512322]
[1769482966028,3.49005606,125.09,125.04,2.34979517]
[1769482966229,7.2036,125.1,125.05,5.75512322]
[1769482967932,10.69415606,125.09,125.03,2.34979517]
[1769482968135,10.69415606,125.09,125.02,3.40532805]
[1769482968136,13.04395123,125.09,125.02,5.75512322]
[1769482968332,10.69415606,125.09,125.02,5.75512322]
[1769482968539,10.69415606,125.09,125.03,5.75512322]
[1769482969934,112.0446,125.11,125.04,10.61172805]
[1769482969935,3.49005606,125.11,125.04,10.61172805]
[1769482970133,3.49005606,125.11,125.06,2.34979517]
[1769482970336,3.49005606,125.11,125.05,5.75512322]
[1769482970936,10.69305606,125.11,125.05,5.75512322]
[1769482971643,10.69185606,125.13,125.07,5.75512322]
[1769482972344,13.04165123,125.13,125.07,5.75512322]
[1769482973137,10.69185606,125.13,125.08,3.80454568]
[1769482973336,10.84568747,125.15,125.09,6.15434085]
[1769482973545,13.19548264,125.15,125.09,3.80454568]
[1769482974042,13.19598264,125.14,125.09,3.80454568]
[1769482974644,10.84618747,125.14,125.09,3.80454568]
[1769482974839,13.19598264,125.14,125.07,6.15434085]
[1769482975045,5.99488264,125.12,125.05,6.15434085]
[1769482975245,112.0188,125.14,125.05,3.80454568]
[1769482975246,5.99488264,125.11,125.05,3.80454568]
[1769482976043,3.64508747,125.11,125.06,3.80454568]
[1769482976237,3.64508747,125.11,125.06,6.15434085]
[1769482976639,3.64508747,125.12,125.07,3.80454568]
[1769482979651,9.55159517,125.13,125.07,6.15434085]
[1769482979853,7.2018,125.13,125.07,6.15434085]
[1769482980049,7.2018,125.13,125.08,3.80454568]
[1769482980554,13.19558264,125.15,125.09,3.80454568]
[1769482980752,10.84578747,125.15,125.09,6.15434085]
[1769482980955,3.64508747,125.15,125.1,6.15434085]
[1769482981255,26.9122573,125.16,125.1,6.15434085]
[1769482981554,23.26716983,125.16,125.12,3.80454568]
[1769482982050,23.26716983,125.16,125.11,2.34979517]
[1769482982246,23.26716983,125.16,125.1,6.15434085]
[1769482983543,23.26716983,125.16,125.1,3.80454568]
[1769482983749,25.616965,125.16,125.1,3.80454568]
[1769482983955,36.46195247,125.16,125.1,3.80454568]
[1769482984154,2.34979517,125.15,125.1,3.80454568]
[1769482984651,2.34979517,125.14,125.08,3.80454568]
[1769482985558,2.34979517,125.13,125.08,3.80454568]
[1769482986454,2.34979517,125.11,125.06,3.80454568]
[1769482986655,2.34979517,125.09,125.04,3.80454568]
[1769482986856,2.34979517,125.08,125.04,3.80454568]
[1769482989854,2.34979517,125.08,125.02,3.80454568]
[1769482992062,2.34979517,125.06,125.02,3.80454568]
[1769482994052,2.34979517,125.06,125.0,27.07171551]
[1769482994255,2.34979517,125.04,125.0,27.07171551]
[1769482995461,2.34979517,125.05,125.0,27.07171551]
[1769482995761,13.20068264,125.06,125.0,27.07171551]
[1769482996661,10.84798747,125.11,125.04,3.80454568]
[1769482996962,5.99488264,125.13,125.06,6.15434085]
[1769482997161,3.64508747,125.13,125.06,6.15434085]
[1769482997550,3.64508747,125.13,125.07,3.80454568]
[1769482997952,10.84668747,125.13,125.07,3.80454568]
[1769482998657,3.64508747,125.13,125.07,6.15434085]
[1769483000459,3.64508747,125.13,125.07,3.80454568]
[1769483000664,5.99488264,125.13,125.07,3.80454568]
[1769483001661,2.34480042,125.12,125.07,3.80454568]
[1769483001860,2.34480042,125.11,125.05,3.70327754]
[1769483002364,6.36263153,125.12,125.05,6.04807796]
[1769483002665,6.36263153,125.12,125.06,4.0064963]
[1769483009073,4.01949718,125.11,125.06,4.0064963]
[1769483009671,6.3642976,125.11,125.04,13.55779672]
[1769483009972,6.3642976,125.11,125.04,11.2129963]
[1769483010773,4.01949718,125.1,125.04,11.2129963]
[1769483010973,6.3642976,125.1,125.04,4.0064963]
[1769483012775,4.01949718,125.1,125.04,4.0064963]
[1769483014176,11.22139718,125.13,125.05,6.35129672]
[1769483014379,4.01949718,125.12,125.06,6.35129672]
[1769483015076,4.01949718,125.12,125.07,4.0064963]
[1769483015278,11.22159718,125.12,125.07,4.0064963]
[1769483015881,13.5663976,125.12,125.07,4.0064963]
[1769483017379,11.22159718,125.12,125.07,4.0064963]
[1769483019582,13.5663976,125.12,125.07,4.0064963]
[1769483019785,13.5669976,125.11,125.05,4.0064963]
[1769483020482,2.34480042,125.1,125.05,4.0064963]
[1769483021779,6.3642976,125.1,125.05,4.0064963]
[1769483021984,13.5674976,125.1,125.03,6.35129672]
[1769483022887,11.22269718,125.1,125.03,13.55839672]
[1769483023286,13.5674976,125.1,125.03,13.55839672]
[1769483023783,11.22329718,125.09,125.03,4.0064963]
[1769483023990,13.5680976,125.09,125.03,4.0064963]
[1769483024381,6.3642976,125.08,125.02,7.2077]
[1769483024784,6.3642976,125.08,125.02,11.2141963]
[1769483025589,4.01949718,125.08,125.03,4.0064963]
[1769483030189,11.22389718,125.08,125.03,4.0064963]
[1769483033291,13.5686976,125.08,125.03,4.0064963]
[1769483034992,4.01949718,125.08,125.03,4.0064963]
[1769483038895,7.2034,125.1,125.05,4.35141466]
[1769483039787,4.10235596,125.13,125.08,6.69621508]
[1769483040582,7.2013,125.14,125.09,4.35141466]
[1769483040789,4.10235596,125.15,125.09,6.69621508]
[1769483041490,4.10235596,125.15,125.06,431.3022]
[1769483041491,23.26716983,125.16,125.1,6.69621508]
[1769483041793,27.36952579,125.16,125.1,6.69621508]
[1769483041994,34.56952579,125.16,125.1,6.69621508]
[1769483043801,34.56952579,125.16,125.1,4.35141466]
[1769483044100,27.36952579,125.16,125.1,6.69621508]
[1769483044590,27.36952579,125.16,125.11,13.89871508]
[1769483044794,23.26716983,125.16,125.12,2.34480042]
[1769483046195,27.36952579,125.16,125.11,2.34480042]
[1769483046399,4.10235596,125.15,125.1,2.34480042]
[1769483047395,4.10235596,125.15,125.09,13.89971508]
[1769483047696,4.10235596,125.15,125.09,6.69621508]
[1769483050198,4.10235596,125.14,125.09,2.34480042]
[1769483050403,4.10235596,125.14,125.08,2.34480042]
[1769483052100,4.10235596,125.13,125.07,6.69621508]
[1769483052302,4.10235596,125.1,125.04,6.69621508]
[1769483053103,4.10235596,125.1,125.04,4.35141466]
[1769483053302,4.10235596,125.1,125.04,6.69621508]
[1769483055101,4.10235596,125.1,125.05,2.34480042]
[1769483056803,4.10235596,125.1,125.04,6.69621508]
[1769483057306,11.30565596,125.1,125.04,6.69621508]
[1769483058506,13.65045638,125.1,125.04,4.35141466]
[1769483058707,4.10235596,125.08,125.02,4.35141466]
[1769483058910,4.10235596,125.08,125.02,6.69621508]
[1769483059410,11.30685596,125.08,125.02,6.69621508]
[1769483059606,2.34480042,125.07,125.02,4.35141466]
[1769483060810,4.10235596,125.08,125.02,4.35141466]
[1769483063112,4.10235596,125.08,125.02,6.69621508]
[1769483063611,4.10235596,125.08,125.02,6.69767111]
[1769483066517,4.10235596,125.08,125.02,4.35141466]
[1769483066718,4.10235596,125.08,125.02,6.69767111]
[1769483066909,6.44861241,125.08,125.02,6.69767111]
[1769483069118,6.44861241,125.08,125.02,4.35141466]
[1769483069419,13.65301241,125.08,125.02,4.35141466]
[1769483070721,4.54636779,125.07,125.02,4.35141466]
[1769483072323,14.09662424,125.09,125.03,4.39752076]
[1769483072520,11.75036779,125.09,125.03,6.74377721]
[1769483073819,4.54636779,125.08,125.03,6.74377721]
[1769483076426,4.54636779,125.08,125.03,4.39752076]
[1769483079433,4.54636779,125.1,125.04,4.39752076]